{"text_format":"3","workbook":"xlsx","n_sheets":1,"sheets":["CAC PISO 18"],"not_rendered":{"images":1},"read":"whole","date_system":"1900"}

{"sheet":"CAC PISO 18","index":0,"n_rows":28,"n_cols":6,"rows_kept":28,"merged":[[0,1,0,5],[19,0,19,3],[19,4,19,5],[20,0,20,3],[20,4,20,5],[21,0,21,3],[21,4,21,5],[25,0,25,3],[26,0,26,3],[27,0,27,3]]}
[null,"INVITACIÓN A COTIZAR A NOMBRE DE LA CAMARA DE COMERCIO DE CARTAGENA CON NIT.890480041-1\nMOBILIARIO DE LINEA OFICINAS CENTRO DE ARBITRAJE Y CONCILIACION (CAC) MEDIO PISO 18 - NUEVA SEDE CCC"]
["ITEM","DESCRIPCIÓN MOBILIARIO","U/M","CANTIDAD","VALOR UNITARIO","VALOR TOTAL"]
[1,"ML-1 _ Mesa operativa de 140x70 con paneles en sus tres lados, altura entre 74 y 75 cm. Cubierta MDF 25 mm Formica segun fichas tecnicas con tapacantos de PVC de 2mm. Estructura acero electro pintada blanca. Patas con patín para nivelación. Considera bandeja para electrificación, porta chasis doble y tapa pasacables doble. Revisar e incluir las indicaciones (colores y accesorios) del Anexo \"Fichas técnicas\" y planos para la ubicación del mueble que corresponderá en cada cada piso.","PZA",2,null,{"$f":"+E3*D3","v":0}]
[2,"ML-1c _ Mesas operativas de 140x60 modulacion tipo BENCH DE 6 PUESTOS. con paneles en sus tres lados, altura entre 74 y 75 cm. Cubierta MDF 25 mm Formica segun fichas tecnicas con tapacantos de PVC de 2mm. Estructura acero electro pintada blanca. Patas con patín para nivelación. Considera bandeja para electrificación, porta chasis doble y tapa pasacables doble. Revisar e incluir las indicaciones (colores y accesorios) del Anexo \"Fichas técnicas\" y planos para la ubicación del mueble que corresponderá en cada cada piso.","PZA",6,null,{"$f":"+E4*D4","v":0}]
[3,"ML6   MESA SALA DE JUNTAS 8P\n-Dimensiones: 140 ancho x 350 largo. -Superficie en formica, acabado color madera. -Estructura cuadrada, en pintura electrostática, color negro, gris o blanco.\n-Incluye pasacable abatible, con pretroqueles, y bajante.","PZA",1,null,0]
[4,"ML6b   MESA SALA DE JUNTAS 8P\n-Dimensiones: 140 ancho x 280 largo. -Superficie en formica, acabado color madera. -Estructura cuadrada, en pintura electrostática, color negro, gris o blanco.\n-Incluye pasacable abatible, con pretroqueles, y bajante.","PZA",1,null,0]
[5,"ML6c   MESA SALA DE JUNTAS 8P\n-Dimensiones: 140 ancho x 240 largo. -Superficie en formica, acabado color madera. -Estructura cuadrada, en pintura electrostática, color negro, gris o blanco.\n-Incluye pasacable abatible, con pretroqueles, y bajante.","PZA",1,null,0]
[6,"ML8 MESA PHONEBOOTH\n-Dimensiones: 75 ancho x 138 largo. -Superficie en formica, acabado color madera. -Estructura base plato, en pintura electrostática, color negro, gris o blanco. -Incluye pasacable abatible, con pretroqueles, y bajante.","PZA",1,null,0]
[7,"ML9   MESA CAPACITACIONES\n-Superficie de 1.40 x 0.60 en formica, acabado madera claro.\n-Estructura: Viga: Tubería PTS de 40 mm, calibre 16.\nPatas: Tubería diámetro 35 mm. -Mecanismo:Plegable de superficie con bloqueo en posición horizontal.\n-Kit conector: Kit para unir mesas.\n-Pasacables y accesorios de conectividad.","PZA",10,null,0]
[8,"MC 1A MUEBLE GUARDADO SIN MACETERO","PZA",1,null,0]
[9,"MC 2 POLTRONA","PZA",2,null,0]
[10,"MC 3 COFFEE TABLE","PZA",2,null,0]
[11,"MC 7  Mueble de copy. 180 X 60 CON PUERTAS DE GUARDADO.","PZA",1,null,0]
[12,"MC12   SOFA 3 PUSTOS","PZA",1,null,0]
[13,"S1 Silla operativa","PZA",8,null,0]
[14,"S2 Silla Interlocutora","PZA",1,null,0]
[15,"S3   Juntas","PZA",33,null,0]
[16,"S5 butaco alto","PZA",4,null,0]
[17,"S6a capacitaciones","PZA",21,null,0]
["SUBTOTAL",{"$nulls":3},{"$f":"SUM(F3:F19)","v":0}]
["IVA",{"$nulls":3},{"$f":"+E20*19%","v":0}]
["TOTAL",{"$nulls":3},{"$f":"+E21+E20","v":0}]
[]
[]
[]
["Nota 1: La Cámara de comercio aceptará dentro de la propuesta, alternativas de colores o modelos, similares a las referencias indicadas"]
["Nota 2: Las medidas deben ser confirmadas con planos suministrados."]
["Nota: Dentro de la propuesta técnica compartir los catalogos de opc"]